[Event "Titled Tuesday Blitz August 02 Late 2022"]
[White "Domingo Nunez, Ruben"]
[Black "Shimanov, Aleksandr"]
[WhiteFideId "22245570"]
[BlackFideId "4198603"]
[WhiteElo "2373"]
[BlackElo "2605"]
[Result "0-1"]
[Round "03"]
[TimeControl "180+1"]
[Date "2022.08.02"]
[WhiteClock "0:00:03"]
[BlackClock "0:00:12"]

1. c4 {[%clk 0:03:00]}  Nf6 {[%clk 0:02:59]} 2. Nc3 {[%clk 0:02:59]}  g6 {[%clk 0:02:59]} 3. g3 {[%clk 0:02:59]}  Bg7 {[%clk 0:02:59]} 4. Bg2 {[%clk 0:03:00]}  O-O {[%clk 0:03:00]} 5. Nf3 {[%clk 0:03:00]}  c5 {[%clk 0:02:57]} 6. O-O {[%clk 0:03:00]}  d5 {[%clk 0:02:57]} 7. cxd5 {[%clk 0:02:55]}  Nxd5 {[%clk 0:02:58]} 8. Rb1 {[%clk 0:02:48]}  Nc6 {[%clk 0:02:57]} 9. Nxd5 {[%clk 0:02:31]}  Qxd5 {[%clk 0:02:57]} 10. a3 {[%clk 0:02:30]}  a5 {[%clk 0:02:50]} 11. d3 {[%clk 0:02:27]}  Qd6 {[%clk 0:02:26]} 12. Nd2 {[%clk 0:02:23]}  b6 {[%clk 0:02:20]} 13. Nc4 {[%clk 0:02:18]}  Qc7 {[%clk 0:02:20]} 14. Bf4 {[%clk 0:02:18]}  e5 {[%clk 0:02:07]} 15. Nxe5 {[%clk 0:02:14]}  Bxe5 {[%clk 0:01:58]} 16. Bxe5 {[%clk 0:02:13]}  Qxe5 {[%clk 0:01:57]} 17. Bxc6 {[%clk 0:02:14]}  Ra7 {[%clk 0:01:55]} 18. b4 {[%clk 0:02:02]}  cxb4 {[%clk 0:01:48]} 19. axb4 {[%clk 0:02:01]}  Bg4 {[%clk 0:01:49]} 20. Re1 {[%clk 0:01:55]}  Rc8 {[%clk 0:01:48]} 21. Qa4 {[%clk 0:01:46]}  h5 {[%clk 0:01:25]} 22. Bg2 {[%clk 0:01:15]}  b5 {[%clk 0:01:20]} 23. Qa3 {[%clk 0:01:03]}  a4 {[%clk 0:01:17]} 24. h3 {[%clk 0:00:59]}  Be6 {[%clk 0:01:12]} 25. Kh2 {[%clk 0:00:38]}  Rc3 {[%clk 0:01:09]} 26. Qa1 {[%clk 0:00:35]}  Rac7 {[%clk 0:01:09]} 27. Rec1 {[%clk 0:00:25]}  a3 {[%clk 0:00:50]} 28. Rc2 {[%clk 0:00:14]}  h4 {[%clk 0:00:27]} 29. Kh1 {[%clk 0:00:05]}  hxg3 {[%clk 0:00:27]} 30. fxg3 {[%clk 0:00:05]}  Qg7 {[%clk 0:00:21]} 31. Rd2 {[%clk 0:00:03]}  Qd4 {[%clk 0:00:12]} 0-1


[Site "https://www.chess.com"]

[Event "Titled Tuesday Blitz August 02 Late 2022"]
[White "Fedoseev, Vladimir"]
[Black "Lin, Dachey"]
[WhiteFideId "24130737"]
[BlackFideId "2029650"]
[WhiteElo "2726"]
[BlackElo "2313"]
[Result "1-0"]
[Round "03"]
[TimeControl "180+1"]
[Date "2022.08.02"]
[WhiteClock "0:00:23"]
[BlackClock "0:00:13"]

1. e4 {[%clk 0:02:55]}  g6 {[%clk 0:03:00]} 2. d4 {[%clk 0:02:54]}  Bg7 {[%clk 0:03:01]} 3. Nf3 {[%clk 0:02:53]}  c6 {[%clk 0:03:02]} 4. h3 {[%clk 0:02:51]}  d5 {[%clk 0:03:02]} 5. e5 {[%clk 0:02:51]}  Bf5 {[%clk 0:02:48]} 6. Nbd2 {[%clk 0:02:48]}  h5 {[%clk 0:02:47]} 7. Nh4 {[%clk 0:02:44]}  e6 {[%clk 0:02:46]} 8. Nxf5 {[%clk 0:02:43]}  gxf5 {[%clk 0:02:45]} 9. h4 {[%clk 0:02:41]}  Ne7 {[%clk 0:02:43]} 10. Be2 {[%clk 0:02:38]}  c5 {[%clk 0:02:39]} 11. c3 {[%clk 0:02:33]}  Nbc6 {[%clk 0:02:34]} 12. Nb3 {[%clk 0:02:32]}  c4 {[%clk 0:01:43]} 13. Nc5 {[%clk 0:02:30]}  Qc7 {[%clk 0:01:35]} 14. Bxh5 {[%clk 0:02:27]}  Kf8 {[%clk 0:01:09]} 15. Be3 {[%clk 0:02:24]}  b6 {[%clk 0:01:07]} 16. Na4 {[%clk 0:02:23]}  Ng6 {[%clk 0:00:59]} 17. Bxg6 {[%clk 0:02:13]}  fxg6 {[%clk 0:00:59]} 18. b3 {[%clk 0:02:10]}  cxb3 {[%clk 0:00:55]} 19. axb3 {[%clk 0:02:09]}  Na5 {[%clk 0:00:56]} 20. Rc1 {[%clk 0:02:06]}  Rc8 {[%clk 0:00:55]} 21. Nb2 {[%clk 0:02:05]}  Qd7 {[%clk 0:00:53]} 22. Nd3 {[%clk 0:02:03]}  Qb5 {[%clk 0:00:53]} 23. b4 {[%clk 0:01:57]}  Nc4 {[%clk 0:00:53]} 24. Bg5 {[%clk 0:01:56]}  Kf7 {[%clk 0:00:52]} 25. O-O {[%clk 0:01:34]}  Bh6 {[%clk 0:00:50]} 26. Bxh6 {[%clk 0:01:26]}  Rxh6 {[%clk 0:00:51]} 27. g3 {[%clk 0:01:22]}  Rg8 {[%clk 0:00:46]} 28. Ra1 {[%clk 0:01:20]}  a6 {[%clk 0:00:46]} 29. Qa4 {[%clk 0:01:18]}  Qxa4 {[%clk 0:00:29]} 30. Rxa4 {[%clk 0:01:18]}  Ra8 {[%clk 0:00:28]} 31. Rfa1 {[%clk 0:01:16]}  a5 {[%clk 0:00:28]} 32. bxa5 {[%clk 0:01:16]}  bxa5 {[%clk 0:00:29]} 33. Rb1 {[%clk 0:01:14]}  Ra7 {[%clk 0:00:29]} 34. Nc5 {[%clk 0:01:09]}  Rh8 {[%clk 0:00:28]} 35. Rb5 {[%clk 0:01:04]}  Rc8 {[%clk 0:00:27]} 36. Kf1 {[%clk 0:01:01]}  Rcc7 {[%clk 0:00:21]} 37. Ke2 {[%clk 0:01:01]}  Rc6 {[%clk 0:00:21]} 38. Nb7 {[%clk 0:00:50]}  Ke7 {[%clk 0:00:21]} 39. Nxa5 {[%clk 0:00:32]}  Nxa5 {[%clk 0:00:11]} 40. Raxa5 {[%clk 0:00:32]}  Rxa5 {[%clk 0:00:12]} 41. Rxa5 {[%clk 0:00:32]}  Rxc3 {[%clk 0:00:13]} 42. Ra7+ {[%clk 0:00:29]}  Kf8 {[%clk 0:00:14]} 43. Rb7 {[%clk 0:00:28]}  Ra3 {[%clk 0:00:14]} 44. Rc7 {[%clk 0:00:28]}  Rb3 {[%clk 0:00:14]} 45. Rc2 {[%clk 0:00:26]}  Kf7 {[%clk 0:00:14]} 46. Rd2 {[%clk 0:00:26]}  Ra3 {[%clk 0:00:14]} 47. Rd3 {[%clk 0:00:26]}  Ra2+ {[%clk 0:00:14]} 48. Ke3 {[%clk 0:00:26]}  Rb2 {[%clk 0:00:14]} 49. Rc3 {[%clk 0:00:26]}  Ra2 {[%clk 0:00:12]} 50. Rc7+ {[%clk 0:00:25]}  Kf8 {[%clk 0:00:12]} 51. f3 {[%clk 0:00:22]}  Rg2 {[%clk 0:00:12]} 52. Kf4 {[%clk 0:00:22]}  Rd2 {[%clk 0:00:13]} 53. Kg5 {[%clk 0:00:22]}  Rxd4 {[%clk 0:00:13]} 54. Kf6 {[%clk 0:00:23]}  Ke8 {[%clk 0:00:13]} 55. Kxe6 {[%clk 0:00:23]}  Kd8 {[%clk 0:00:13]} 56. Rd7+ {[%clk 0:00:23]}  Kc8 {[%clk 0:00:13]} 57. Rxd5 {[%clk 0:00:23]} 1-0


[Site "https://www.chess.com"]

[Event "Titled Tuesday Blitz August 02 Late 2022"]
[White "Harsha Bharathakoti"]
[Black "Machidon, Cristi"]
[WhiteFideId "5078776"]
[BlackFideId "13904590"]
[WhiteElo "2575"]
[BlackElo "2312"]
[Result "1-0"]
[Round "03"]
[TimeControl "180+1"]
[Date "2022.08.02"]
[WhiteClock "0:00:06"]
[BlackClock "0:00:07"]

1. c4 {[%clk 0:03:00]}  c6 {[%clk 0:02:59]} 2. Nc3 {[%clk 0:02:58]}  d5 {[%clk 0:02:59]} 3. d4 {[%clk 0:02:58]}  Nf6 {[%clk 0:02:59]} 4. Nf3 {[%clk 0:02:58]}  a6 {[%clk 0:02:55]} 5. Qc2 {[%clk 0:02:57]}  b5 {[%clk 0:02:49]} 6. b3 {[%clk 0:02:49]}  e6 {[%clk 0:02:44]} 7. e3 {[%clk 0:02:43]}  Nbd7 {[%clk 0:02:44]} 8. Bd3 {[%clk 0:02:40]}  Be7 {[%clk 0:02:38]} 9. O-O {[%clk 0:02:36]}  Bb7 {[%clk 0:02:36]} 10. Bb2 {[%clk 0:02:16]}  O-O {[%clk 0:02:33]} 11. Ne5 {[%clk 0:02:16]}  bxc4 {[%clk 0:02:04]} 12. bxc4 {[%clk 0:02:16]}  dxc4 {[%clk 0:02:04]} 13. Bxc4 {[%clk 0:02:07]}  c5 {[%clk 0:02:03]} 14. Rfd1 {[%clk 0:01:40]}  cxd4 {[%clk 0:01:43]} 15. Rxd4 {[%clk 0:01:40]}  Qc7 {[%clk 0:01:42]} 16. Nxd7 {[%clk 0:01:40]}  Nxd7 {[%clk 0:01:43]} 17. Rad1 {[%clk 0:01:20]}  Nf6 {[%clk 0:01:41]} 18. Bf1 {[%clk 0:01:15]}  Rfd8 {[%clk 0:01:38]} 19. Qb3 {[%clk 0:01:11]}  Rxd4 {[%clk 0:01:11]} 20. Rxd4 {[%clk 0:01:12]}  Rd8 {[%clk 0:01:12]} 21. Rxd8+ {[%clk 0:01:11]}  Bxd8 {[%clk 0:01:12]} 22. Ba3 {[%clk 0:00:53]}  h5 {[%clk 0:01:01]} 23. h3 {[%clk 0:00:53]}  Nd5 {[%clk 0:00:54]} 24. Nxd5 {[%clk 0:00:49]}  Bxd5 {[%clk 0:00:55]} 25. Qb4 {[%clk 0:00:50]}  Bf6 {[%clk 0:00:37]} 26. Qf8+ {[%clk 0:00:18]}  Kh7 {[%clk 0:00:37]} 27. Bxa6 {[%clk 0:00:18]}  g6 {[%clk 0:00:29]} 28. Bb5 {[%clk 0:00:09]}  Bg7 {[%clk 0:00:25]} 29. Qc5 {[%clk 0:00:06]}  Qxc5 {[%clk 0:00:19]} 30. Bxc5 {[%clk 0:00:07]}  Bxa2 {[%clk 0:00:19]} 31. Be8 {[%clk 0:00:08]}  e5 {[%clk 0:00:12]} 32. Be7 {[%clk 0:00:08]}  Be6 {[%clk 0:00:10]} 33. e4 {[%clk 0:00:08]}  Bc4 {[%clk 0:00:07]} 34. f3 {[%clk 0:00:07]}  Bh6 {[%clk 0:00:06]} 35. Kf2 {[%clk 0:00:07]}  Kg7 {[%clk 0:00:04]} 36. h4 {[%clk 0:00:06]}  Bd2 {[%clk 0:00:05]} 37. Bc5 {[%clk 0:00:05]}  Kf6 {[%clk 0:00:03]} 38. g4 {[%clk 0:00:04]}  hxg4 {[%clk 0:00:03]} 39. fxg4 {[%clk 0:00:04]}  Bf4 {[%clk 0:00:03]} 40. g5+ {[%clk 0:00:04]}  Kg7 {[%clk 0:00:03]} 41. Be7 {[%clk 0:00:04]}  Be6 {[%clk 0:00:04]} 42. Bf6+ {[%clk 0:00:05]}  Kg8 {[%clk 0:00:04]} 43. Kf3 {[%clk 0:00:06]}  Kf8 {[%clk 0:00:04]} 44. Bc6 {[%clk 0:00:06]}  Bb3 {[%clk 0:00:04]} 45. Bd5 {[%clk 0:00:06]}  Bd1+ {[%clk 0:00:05]} 46. Kf2 {[%clk 0:00:07]}  Bh5 {[%clk 0:00:05]} 47. Bc4 {[%clk 0:00:06]}  Ke8 {[%clk 0:00:06]} 48. Bb5+ {[%clk 0:00:06]}  Kf8 {[%clk 0:00:06]} 49. Kg2 {[%clk 0:00:07]}  Be3 {[%clk 0:00:06]} 50. Kg3 {[%clk 0:00:07]}  Bf4+ {[%clk 0:00:06]} 51. Kf2 {[%clk 0:00:07]}  Bd1 {[%clk 0:00:07]} 52. Be2 {[%clk 0:00:06]}  Bxe2 {[%clk 0:00:07]} 53. Kxe2 {[%clk 0:00:07]}  Bg3 {[%clk 0:00:08]} 54. Kf3 {[%clk 0:00:06]}  Bxh4 {[%clk 0:00:08]} 55. Kg4 {[%clk 0:00:06]}  Be1 {[%clk 0:00:08]} 56. Bxe5 {[%clk 0:00:07]}  Ke7 {[%clk 0:00:08]} 57. Bf4 {[%clk 0:00:05]}  Ke6 {[%clk 0:00:08]} 58. Kf3 {[%clk 0:00:06]}  f6 {[%clk 0:00:07]} 59. gxf6 {[%clk 0:00:06]} 1-0


[Site "https://www.chess.com"]

[Event "Titled Tuesday Blitz August 02 Late 2022"]
[White "Jaferian, Koosha"]
[Black "Mikhnenko, Alexander"]
[WhiteFideId "12507440"]
[BlackFideId "34143014"]
[WhiteElo "2030"]
[BlackElo "2134"]
[Result "1-0"]
[Round "03"]
[TimeControl "180+1"]
[Date "2022.08.02"]
[WhiteClock "0:00:50"]
[BlackClock "0:00:05"]

1. Nf3 {[%clk 0:03:00]}  d5 {[%clk 0:02:54]} 2. b3 {[%clk 0:03:01]}  Bf5 {[%clk 0:02:48]} 3. g3 {[%clk 0:03:01]}  e6 {[%clk 0:02:48]} 4. Bg2 {[%clk 0:03:01]}  h6 {[%clk 0:02:46]} 5. Bb2 {[%clk 0:03:01]}  Nf6 {[%clk 0:02:45]} 6. O-O {[%clk 0:03:01]}  Be7 {[%clk 0:02:45]} 7. d3 {[%clk 0:03:01]}  Bh7 {[%clk 0:02:44]} 8. Nbd2 {[%clk 0:03:02]}  O-O {[%clk 0:02:44]} 9. e3 {[%clk 0:03:02]}  c5 {[%clk 0:02:40]} 10. Qe2 {[%clk 0:03:03]}  Nc6 {[%clk 0:02:40]} 11. Ne1 {[%clk 0:03:02]}  a5 {[%clk 0:02:33]} 12. a4 {[%clk 0:03:01]}  Nd7 {[%clk 0:02:23]} 13. f4 {[%clk 0:02:56]}  Bf6 {[%clk 0:02:22]} 14. Bxf6 {[%clk 0:02:56]}  Qxf6 {[%clk 0:02:16]} 15. Nef3 {[%clk 0:02:57]}  Qc3 {[%clk 0:02:15]} 16. Rfc1 {[%clk 0:02:57]}  Rad8 {[%clk 0:02:05]} 17. g4 {[%clk 0:02:54]}  e5 {[%clk 0:02:04]} 18. f5 {[%clk 0:02:51]}  f6 {[%clk 0:01:46]} 19. e4 {[%clk 0:02:50]}  Nd4 {[%clk 0:01:43]} 20. Nxd4 {[%clk 0:02:48]}  Qxd4+ {[%clk 0:01:44]} 21. Kh1 {[%clk 0:02:48]}  dxe4 {[%clk 0:01:41]} 22. Bxe4 {[%clk 0:02:45]}  Kh8 {[%clk 0:01:38]} 23. Bxb7 {[%clk 0:02:44]}  Bg8 {[%clk 0:01:36]} 24. Be4 {[%clk 0:02:44]}  Nb6 {[%clk 0:01:32]} 25. Nc4 {[%clk 0:02:37]}  Nxc4 {[%clk 0:01:12]} 26. bxc4 {[%clk 0:02:38]}  Rb8 {[%clk 0:01:12]} 27. Rab1 {[%clk 0:02:36]}  Rb2 {[%clk 0:00:59]} 28. Rxb2 {[%clk 0:02:25]}  Qxb2 {[%clk 0:01:00]} 29. Rg1 {[%clk 0:02:26]}  Rb8 {[%clk 0:00:42]} 30. h4 {[%clk 0:02:25]}  Qa2 {[%clk 0:00:32]} 31. g5 {[%clk 0:02:13]}  Rb1 {[%clk 0:00:32]} 32. gxf6 {[%clk 0:02:09]}  Rxg1+ {[%clk 0:00:32]} 33. Kxg1 {[%clk 0:02:10]}  gxf6 {[%clk 0:00:26]} 34. Qe3 {[%clk 0:02:11]}  Qb1+ {[%clk 0:00:22]} 35. Kf2 {[%clk 0:02:07]}  Qxc2+ {[%clk 0:00:22]} 36. Kg3 {[%clk 0:02:08]}  Kg7 {[%clk 0:00:17]} 37. Qxc5 {[%clk 0:02:08]}  Qe2 {[%clk 0:00:13]} 38. Qa7+ {[%clk 0:02:02]}  Bf7 {[%clk 0:00:09]} 39. Qf2 {[%clk 0:01:59]}  Qd1 {[%clk 0:00:07]} 40. c5 {[%clk 0:01:55]}  Qc1 {[%clk 0:00:07]} 41. c6 {[%clk 0:01:54]}  h5 {[%clk 0:00:05]} 42. Kh2 {[%clk 0:01:38]}  Qc3 {[%clk 0:00:05]} 43. Kg2 {[%clk 0:01:32]}  Kf8 {[%clk 0:00:06]} 44. Qb6 {[%clk 0:01:28]}  Qd2+ {[%clk 0:00:05]} 45. Kf3 {[%clk 0:01:28]}  Qd1+ {[%clk 0:00:05]} 46. Kg2 {[%clk 0:01:28]}  Qd2+ {[%clk 0:00:03]} 47. Qf2 {[%clk 0:01:28]}  Qc3 {[%clk 0:00:03]} 48. Qe2 {[%clk 0:01:18]}  Ke7 {[%clk 0:00:04]} 49. Kf2 {[%clk 0:01:15]}  Kd6 {[%clk 0:00:04]} 50. Qe3 {[%clk 0:01:06]}  Qc2+ {[%clk 0:00:04]} 51. Kg3 {[%clk 0:01:07]}  Qxa4 {[%clk 0:00:04]} 52. Qb6 {[%clk 0:01:06]}  Qb4 {[%clk 0:00:04]} 53. Qd8+ {[%clk 0:01:04]}  Kc5 {[%clk 0:00:04]} 54. Qe7+ {[%clk 0:01:05]}  Kb6 {[%clk 0:00:04]} 55. Qb7+ {[%clk 0:01:05]}  Kc5 {[%clk 0:00:03]} 56. Qxb4+ {[%clk 0:00:49]}  axb4 {[%clk 0:00:04]} 57. c7 {[%clk 0:00:50]}  Be6 {[%clk 0:00:05]} 58. fxe6 {[%clk 0:00:50]} 1-0


[Site "https://www.chess.com"]

[Event "Titled Tuesday Blitz August 02 Late 2022"]
[White "Koelle, Tobias"]
[Black "Ghaem Maghami, Ehsan"]
[WhiteFideId "16207378"]
[BlackFideId "12500739"]
[WhiteElo "2541"]
[BlackElo "2627"]
[Result "0-1"]
[Round "03"]
[TimeControl "180+1"]
[Date "2022.08.02"]
[WhiteClock "0:01:23"]
[BlackClock "0:00:58"]

1. d4 {[%clk 0:03:00]}  Nf6 {[%clk 0:02:59]} 2. c4 {[%clk 0:02:58]}  e6 {[%clk 0:02:58]} 3. Nc3 {[%clk 0:02:58]}  Bb4 {[%clk 0:02:58]} 4. Qc2 {[%clk 0:02:59]}  O-O {[%clk 0:02:57]} 5. e4 {[%clk 0:02:58]}  d6 {[%clk 0:02:57]} 6. e5 {[%clk 0:02:58]}  dxe5 {[%clk 0:02:57]} 7. dxe5 {[%clk 0:02:59]}  Ng4 {[%clk 0:02:57]} 8. Nf3 {[%clk 0:02:58]}  Nc6 {[%clk 0:02:57]} 9. Bf4 {[%clk 0:02:58]}  Nd4 {[%clk 0:02:55]} 10. Qd2 {[%clk 0:02:58]}  c5 {[%clk 0:02:54]} 11. Rd1 {[%clk 0:02:53]}  f6 {[%clk 0:02:53]} 12. exf6 {[%clk 0:02:48]}  Qxf6 {[%clk 0:02:50]} 13. Bg3 {[%clk 0:02:38]}  Qxf3 {[%clk 0:02:44]} 14. gxf3 {[%clk 0:02:39]}  Nxf3+ {[%clk 0:02:43]} 15. Ke2 {[%clk 0:02:38]}  Nxd2 {[%clk 0:02:43]} 16. Rxd2 {[%clk 0:02:38]}  e5 {[%clk 0:02:27]} 17. Bg2 {[%clk 0:02:37]}  Bxc3 {[%clk 0:02:16]} 18. bxc3 {[%clk 0:02:38]}  Be6 {[%clk 0:02:13]} 19. Bd5 {[%clk 0:02:22]}  Bxd5 {[%clk 0:02:13]} 20. Rxd5 {[%clk 0:02:22]}  b6 {[%clk 0:02:08]} 21. h3 {[%clk 0:02:21]}  Nf6 {[%clk 0:02:07]} 22. Rxe5 {[%clk 0:02:21]}  Rfe8 {[%clk 0:02:05]} 23. Rd1 {[%clk 0:02:17]}  Kf7 {[%clk 0:02:01]} 24. Kf3 {[%clk 0:02:15]}  Rxe5 {[%clk 0:01:38]} 25. Bxe5 {[%clk 0:02:15]}  Re8 {[%clk 0:01:38]} 26. Bxf6 {[%clk 0:02:14]}  Kxf6 {[%clk 0:01:38]} 27. Rd6+ {[%clk 0:02:13]}  Ke7 {[%clk 0:01:36]} 28. Rd5 {[%clk 0:02:13]}  Rf8+ {[%clk 0:01:35]} 29. Ke3 {[%clk 0:02:13]}  Rf6 {[%clk 0:01:35]} 30. h4 {[%clk 0:02:12]}  Re6+ {[%clk 0:01:32]} 31. Kf3 {[%clk 0:02:10]}  Re1 {[%clk 0:01:29]} 32. Rd2 {[%clk 0:01:50]}  Rc1 {[%clk 0:01:27]} 33. Ke4 {[%clk 0:01:50]}  Rxc3 {[%clk 0:01:27]} 34. Kd5 {[%clk 0:01:51]}  Rh3 {[%clk 0:01:15]} 35. Re2+ {[%clk 0:01:50]}  Kd7 {[%clk 0:01:15]} 36. Re4 {[%clk 0:01:50]}  Rf3 {[%clk 0:01:13]} 37. Rg4 {[%clk 0:01:48]}  g6 {[%clk 0:01:13]} 38. Rg2 {[%clk 0:01:46]}  Rf4 {[%clk 0:01:10]} 39. h5 {[%clk 0:01:44]}  Rf5+ {[%clk 0:01:10]} 40. Ke4 {[%clk 0:01:44]}  Rxh5 {[%clk 0:01:11]} 41. f4 {[%clk 0:01:44]}  Rh1 {[%clk 0:01:10]} 42. Rd2+ {[%clk 0:01:43]}  Ke6 {[%clk 0:01:10]} 43. Kf3 {[%clk 0:01:42]}  Rc1 {[%clk 0:01:08]} 44. Re2+ {[%clk 0:01:42]}  Kf6 {[%clk 0:01:07]} 45. Re4 {[%clk 0:01:43]}  Rc3+ {[%clk 0:01:07]} 46. Kg4 {[%clk 0:01:42]}  h5+ {[%clk 0:01:07]} 47. Kh4 {[%clk 0:01:42]}  Rf3 {[%clk 0:01:07]} 48. a3 {[%clk 0:01:31]}  Rxa3 {[%clk 0:01:03]} 49. f5 {[%clk 0:01:30]}  gxf5 {[%clk 0:01:03]} 50. Re8 {[%clk 0:01:24]}  Ra4 {[%clk 0:01:02]} 51. Rf8+ {[%clk 0:01:24]}  Ke5 {[%clk 0:01:02]} 52. Kg5 {[%clk 0:01:21]}  Rxc4 {[%clk 0:01:02]} 53. Re8+ {[%clk 0:01:21]}  Kd6 {[%clk 0:01:02]} 54. Kh6 {[%clk 0:01:22]}  h4 {[%clk 0:01:01]} 55. Kg7 {[%clk 0:01:22]}  h3 {[%clk 0:01:01]} 56. Rh8 {[%clk 0:01:23]}  Rc3 {[%clk 0:01:01]} 57. Rh6+ {[%clk 0:01:22]}  Kd5 {[%clk 0:01:01]} 58. Kh7 {[%clk 0:01:22]}  b5 {[%clk 0:01:01]} 59. Kg7 {[%clk 0:01:23]}  b4 {[%clk 0:01:01]} 60. Rg6 {[%clk 0:01:23]}  b3 {[%clk 0:01:01]} 61. Kg8 {[%clk 0:01:23]}  b2 {[%clk 0:01:00]} 62. Kg7 {[%clk 0:01:24]}  b1=Q {[%clk 0:00:59]} 63. Kh7 {[%clk 0:01:23]}  f4 {[%clk 0:00:59]} 64. Kg7 {[%clk 0:01:23]}  Qxg6+ {[%clk 0:00:59]} 65. Kh8 {[%clk 0:01:23]}  Qf6+ {[%clk 0:00:58]} 0-1


[Site "https://www.chess.com"]

[Event "Titled Tuesday Blitz August 02 Late 2022"]
[White "Mardov, Dimitar"]
[Black "Chen, Justin"]
[WhiteFideId "30919495"]
[BlackFideId "2098199"]
[WhiteElo "2185"]
[BlackElo "2289"]
[Result "1-0"]
[Round "03"]
[TimeControl "180+1"]
[Date "2022.08.02"]
[WhiteClock "0:01:13"]
[BlackClock "0:01:09"]

1. d4 {[%clk 0:03:00]}  d5 {[%clk 0:02:58]} 2. c4 {[%clk 0:03:00]}  e6 {[%clk 0:02:57]} 3. Nf3 {[%clk 0:03:00]}  Nf6 {[%clk 0:02:57]} 4. Nc3 {[%clk 0:03:00]}  Be7 {[%clk 0:02:56]} 5. Bf4 {[%clk 0:02:56]}  O-O {[%clk 0:02:56]} 6. e3 {[%clk 0:02:57]}  b6 {[%clk 0:02:56]} 7. cxd5 {[%clk 0:02:56]}  Nxd5 {[%clk 0:02:56]} 8. Bg3 {[%clk 0:02:56]}  Bb7 {[%clk 0:02:53]} 9. Be2 {[%clk 0:02:55]}  Nd7 {[%clk 0:02:50]} 10. O-O {[%clk 0:02:55]}  c5 {[%clk 0:02:50]} 11. Rc1 {[%clk 0:02:49]}  Rc8 {[%clk 0:02:46]} 12. Nxd5 {[%clk 0:02:34]}  Bxd5 {[%clk 0:02:47]} 13. Ba6 {[%clk 0:02:28]}  Ra8 {[%clk 0:02:39]} 14. b3 {[%clk 0:02:29]}  cxd4 {[%clk 0:02:22]} 15. Nxd4 {[%clk 0:02:24]}  Nc5 {[%clk 0:02:21]} 16. Bc4 {[%clk 0:02:17]}  Rc8 {[%clk 0:02:06]} 17. Qe2 {[%clk 0:02:12]}  Bxc4 {[%clk 0:01:57]} 18. Rxc4 {[%clk 0:02:11]}  Qd5 {[%clk 0:01:54]} 19. Rfc1 {[%clk 0:02:07]}  a5 {[%clk 0:01:33]} 20. a3 {[%clk 0:01:48]}  Rcd8 {[%clk 0:01:09]} 21. b4 {[%clk 0:01:41]}  axb4 {[%clk 0:01:10]} 22. axb4 {[%clk 0:01:42]}  Ne4 {[%clk 0:01:09]} 23. Nc6 {[%clk 0:01:16]}  Rd7 {[%clk 0:01:09]} 24. Rd4 {[%clk 0:01:13]} 1-0


[Site "https://www.chess.com"]

[Event "Titled Tuesday Blitz August 02 Late 2022"]
[White "Mathieu, Phileas"]
[Black "Kosteniuk, Alexandra"]
[WhiteFideId "36048410"]
[BlackFideId "4128125"]
[WhiteElo "2138"]
[BlackElo "2469"]
[Result "0-1"]
[Round "03"]
[TimeControl "180+1"]
[Date "2022.08.02"]
[WhiteClock "0:00:49"]
[BlackClock "0:01:34"]

1. e4 {[%clk 0:03:00]}  c6 {[%clk 0:03:00]} 2. Nc3 {[%clk 0:02:52]}  d5 {[%clk 0:03:00]} 3. Nf3 {[%clk 0:02:50]}  dxe4 {[%clk 0:03:00]} 4. Nxe4 {[%clk 0:02:51]}  Nf6 {[%clk 0:03:01]} 5. Nxf6+ {[%clk 0:02:50]}  exf6 {[%clk 0:03:01]} 6. Bc4 {[%clk 0:02:50]}  Qe7+ {[%clk 0:02:59]} 7. Qe2 {[%clk 0:02:49]}  Qxe2+ {[%clk 0:02:59]} 8. Kxe2 {[%clk 0:02:50]}  Bd6 {[%clk 0:02:58]} 9. d4 {[%clk 0:02:48]}  O-O {[%clk 0:02:58]} 10. Be3 {[%clk 0:02:48]}  Nd7 {[%clk 0:02:57]} 11. Bd3 {[%clk 0:02:48]}  Re8 {[%clk 0:02:56]} 12. c4 {[%clk 0:02:46]}  Nf8 {[%clk 0:02:57]} 13. g3 {[%clk 0:02:38]}  f5 {[%clk 0:02:56]} 14. Kd2 {[%clk 0:02:31]}  Ng6 {[%clk 0:02:56]} 15. a3 {[%clk 0:02:15]}  f4 {[%clk 0:02:55]} 16. gxf4 {[%clk 0:02:15]}  Nxf4 {[%clk 0:02:55]} 17. Rhg1 {[%clk 0:02:07]}  Nxd3 {[%clk 0:02:54]} 18. Kxd3 {[%clk 0:02:08]}  Bf5+ {[%clk 0:02:55]} 19. Kc3 {[%clk 0:02:07]}  f6 {[%clk 0:02:48]} 20. b4 {[%clk 0:02:04]}  Kf7 {[%clk 0:02:45]} 21. h4 {[%clk 0:01:58]}  Be4 {[%clk 0:02:38]} 22. Nd2 {[%clk 0:01:57]}  Bg6 {[%clk 0:02:38]} 23. Rae1 {[%clk 0:01:56]}  a5 {[%clk 0:02:37]} 24. c5 {[%clk 0:01:50]}  Bc7 {[%clk 0:02:35]} 25. Ra1 {[%clk 0:01:48]}  f5 {[%clk 0:02:31]} 26. Nc4 {[%clk 0:01:40]}  f4 {[%clk 0:02:31]} 27. Bd2 {[%clk 0:01:40]}  Re2 {[%clk 0:02:28]} 28. Rgf1 {[%clk 0:01:40]}  Bf5 {[%clk 0:02:21]} 29. bxa5 {[%clk 0:01:27]}  Rxa5 {[%clk 0:02:11]} 30. Rae1 {[%clk 0:01:18]}  Rxe1 {[%clk 0:02:03]} 31. Rxe1 {[%clk 0:01:18]}  Ra8 {[%clk 0:02:02]} 32. Kb4 {[%clk 0:01:11]}  Rd8 {[%clk 0:01:50]} 33. Kc3 {[%clk 0:00:55]}  Ra8 {[%clk 0:01:40]} 34. Kb4 {[%clk 0:00:51]}  Be6 {[%clk 0:01:36]} 35. Ne5+ {[%clk 0:00:49]}  Kf6 {[%clk 0:01:34]} 36. Bxf4 {[%clk 0:00:49]}  Ba5+ {[%clk 0:01:34]} 0-1


[Site "https://www.chess.com"]

[Event "Titled Tuesday Blitz August 02 Late 2022"]
[White "Nakamura, Hikaru"]
[Black "Sorkin, Igor"]
[WhiteFideId "2016192"]
[BlackFideId "2803283"]
[WhiteElo "2850"]
[BlackElo "2401"]
[Result "1-0"]
[Round "03"]
[TimeControl "180+1"]
[Date "2022.08.02"]
[WhiteClock "0:01:43"]
[BlackClock "0:00:54"]

1. Nf3 {[%clk 0:03:00]}  d6 {[%clk 0:02:57]} 2. d4 {[%clk 0:03:00]}  g6 {[%clk 0:02:58]} 3. e4 {[%clk 0:03:00]}  Bg7 {[%clk 0:02:58]} 4. Bc4 {[%clk 0:03:01]}  Nf6 {[%clk 0:02:55]} 5. Qe2 {[%clk 0:03:00]}  O-O {[%clk 0:02:52]} 6. e5 {[%clk 0:03:00]}  dxe5 {[%clk 0:02:49]} 7. dxe5 {[%clk 0:03:01]}  Nd5 {[%clk 0:02:49]} 8. O-O {[%clk 0:03:00]}  c6 {[%clk 0:02:35]} 9. h3 {[%clk 0:03:00]}  Nb6 {[%clk 0:01:53]} 10. Bb3 {[%clk 0:02:56]}  a5 {[%clk 0:01:53]} 11. a3 {[%clk 0:02:44]}  Qc7 {[%clk 0:01:47]} 12. Re1 {[%clk 0:02:30]}  c5 {[%clk 0:01:33]} 13. c3 {[%clk 0:02:14]}  a4 {[%clk 0:01:29]} 14. Ba2 {[%clk 0:02:11]}  Nc6 {[%clk 0:01:28]} 15. Bf4 {[%clk 0:02:10]}  h6 {[%clk 0:01:23]} 16. Nbd2 {[%clk 0:02:07]}  Na5 {[%clk 0:01:10]} 17. Qe3 {[%clk 0:02:03]}  Kh7 {[%clk 0:01:09]} 18. e6 {[%clk 0:02:00]}  Qc6 {[%clk 0:01:04]} 19. exf7 {[%clk 0:02:00]}  Nd5 {[%clk 0:01:00]} 20. Bxd5 {[%clk 0:01:53]}  Qxd5 {[%clk 0:01:01]} 21. Ne4 {[%clk 0:01:54]}  b6 {[%clk 0:00:53]} 22. Rad1 {[%clk 0:01:52]}  Qf5 {[%clk 0:00:54]} 23. g4 {[%clk 0:01:43]} 1-0


[Site "https://www.chess.com"]